Cogmind - Beta 13 @@@ ROGUE MODE // 2024.07.19 @ 19:21:13 Player: Wabbajack Result: Self-destructed Performance ------------- Evolutions (1) 500 Regions Visited (3) 600 Robots Destroyed (19) 95 Value Destroyed (519) 519 Prototype IDs (1) 20 Alien Tech Used (0) 0 Bonus (0) 0 TOTAL SCORE: 1734 Bonus ------- None Cogmind --------- Core Integrity 206/400 Matter 223/300 Energy 78/100 System Corruption 0% Temperature Warm (114) Movement Walking (120) Location -9/Materials Parts ------- > --- POWER (1) -------- (None) > --- PROPULSION (3) --- Aluminum Leg Aluminum Leg > --- UTILITY (3) ------ Small Storage Unit Salvage Targeting Computer > --- WEAPON (2) ------- Particle Gun > --- INVENTORY (8) ---- Experimental Sensor Array Light Assault Rifle Grenade Launcher Peak State ------------ > --- POWER ------------ Ion Engine > --- PROPULSION ------- Aluminum Leg Aluminum Leg Aluminum Leg > --- UTILITY ---------- Small Storage Unit Experimental Sensor Array Salvage Targeting Computer > --- WEAPON ----------- Particle Gun Assault Rifle > --- INVENTORY -------- Ion Engine Aluminum Leg Aluminum Leg Aluminum Leg Beam Rifle Particle Gun Light Assault Rifle Grenade Launcher [Rating: 20] Favorites ----------- Power Ion Engine Engine Ion Engine Propulsion Aluminum Leg Leg Aluminum Leg Utility Small Storage Unit Device Sensor Array Storage Small Storage Unit Processor Salvage Targeting Computer Weapon Light Assault Rifle Energy Gun Particle Gun Ballistic Gun Light Assault Rifle Launcher Grenade Launcher Build | -11 -10 -10 -9 ------- Run | Yrd Mat Min Mat Slots Evolved 2 | . . . 2 Power . | . . . . Propulsion 1 | . . . 1 Utility 1 | . . . 1 Weapon . | . . . . Parts Attached 21 | 6 2 3 10 Power 4 | 1 1 1 1 Engine 4 | 1 1 1 1 Core . | . . . . Reactor . | . . . . Propulsion 6 | 2 . . 4 Treads . | . . . . Leg 6 | 2 . . 4 Wheel . | . . . . Hover . | . . . . Flight . | . . . . Utility 4 | 1 1 1 1 Device 2 | . 1 1 . Storage 1 | 1 . . . Processor 1 | . . . 1 Hackware . | . . . . Protection . | . . . . Artifact . | . . . . Weapon 7 | 2 . 1 4 Energy Gun 3 | . . . 3 Energy Cannon . | . . . . Ballistic Gun 3 | 2 . 1 . Ballistic Cannon . | . . . . Launcher 1 | . . . 1 Special Weapon . | . . . . Impact Weapon . | . . . . Slashing Weapon . | . . . . Piercing Weapon . | . . . . Special Melee Weapon . | . . . . Unidentified Prototypes 1 | . . 1 . Parts Lost 11 | . 1 . 10 Power 3 | . 1 . 2 Propulsion 4 | . . . 4 Utility . | . . . . Weapon 4 | . . . 4 Highest Loss Streak 9 | . 1 . 9 To Critical Strikes . | . . . . Average Slot Usage (%) 96 | . 98 100 91 Engine 12 | . 13 14 10 Leg 29 | . 28 28 32 Device 12 | . 13 14 10 Storage 12 | . 14 14 11 Processor 2 | . . . 6 Energy Gun 2 | . . . 5 Ballistic Gun 23 | . 28 28 15 Naked Turns . | . . . . Heaviest Build 17 | 10 13 14 17 Greatest Support 30 | 20 20 20 30 Greatest Overweight (x) 1 | . . . 1 Average Overweight (x) . | . . . . Largest Inventory Capacity 8 | 8 8 8 8 Average Capacity 7 | 6 8 8 8 Most Carried 8 | . 1 8 8 Average Carried 4 | . . 5 6 Final Capacity 8 | 8 8 8 8 Final Carried 7 | . 1 7 3 Class Distribution -------------------- 100% | Mutant Dominant Class ---------------- Mutant | -10/Materials Mutant | -10/Mines Mutant | -9/Materials Resources | -11 -10 -10 -9 ----------- Run | Yrd Mat Min Mat Matter Collected 451 | 194 103 100 54 Remotely . | . . . . Salvage Created 544 | . 138 123 283 Parts 34 | . 7 13 14 Haulers Intercepted . | . . . . Recyclers Shooed . | . . . . Parts Field Recycled . | . . . . Retrieved Matter . | . . . . Parts Self-Destructed . | . . . . Prevented . | . . . . Kills | -11 -10 -10 -9 ------- Run | Yrd Mat Min Mat Combat Hostiles Destroyed 17 | . 5 5 7 Guns 14 | . 5 5 4 AOE 3 | . . . 3 Classes Destroyed 5 | . 2 . 3 Worker 1 | . . . 1 Watcher 1 | . . . 1 Swarmer 6 | . 3 3 . Grunt 9 | . 2 2 5 Sentry 2 | . . . 2 Best Kill Streak 6 | . 3 2 6 Combat Bots Only 4 | . 3 2 4 Max Kills in Single Turn 3 | . 1 1 3 Gunslinging . | . . . . Exploded 2 | . . . 2 Melee . | . . . . Uniques/NPCs Destroyed . | . . . . Combat | -11 -10 -10 -9 -------- Run | Yrd Mat Min Mat Hostile Shots Fired 151 | . 25 23 103 Missed 49 | . 10 10 29 Damage Taken 1292 | . 138 126 1028 Core 228 | . . 34 194 Absorbed by Shields . | . . . . Core Remaining (%) 93 | 100 . 86 . Volleys Fired 53 | . 11 18 24 Largest 2 | . 2 2 2 Hottest 95 | . 40 40 95 Shots Fired 98 | . 22 36 40 Gun 95 | . 22 36 37 Cannon . | . . . . Launcher 3 | . . . 3 Special . | . . . . Kinetic 81 | . 22 36 23 Thermal 14 | . . . 14 Explosive 3 | . . . 3 Electromagnetic . | . . . . Robot Hit Streak 10 | . 7 7 10 Robot Miss Streak 5 | . 3 5 2 Penetration Max . | . . . . Secondary Targets 2 | . 2 . . Max Gunslinging Chain 1 | . 1 . . Shots Hit Robots 60 | . 15 16 29 Core Hits 37 | . 9 8 20 Critical Kills . | . . . . Critical Parts Destroyed . | . . . . Critical Strikes 1 | . . . 1 Burn 1 | . . . 1 Melee Attacks . | . . . . Impact . | . . . . Slashing . | . . . . Piercing . | . . . . Sneak Attacks . | . . . . Combat Hostiles . | . . . . Follow-up Attacks . | . . . . Damage Inflicted 1033 | . 126 201 706 Guns 670 | . 123 196 351 Cannons . | . . . . Explosions 355 | . . . 355 Melee . | . . . . Ramming 8 | . 3 5 . Kinetic 521 | . 123 196 202 Thermal 149 | . . . 149 Explosive 355 | . . . 355 Electromagnetic . | . . . . Impact . | . . . . Slashing . | . . . . Piercing . | . . . . Highest Corruption . | . . . . Average Corruption . | . . . . Corruption Purged . | . . . . Corruption Blocked . | . . . . Overload Shots . | . . . . Overflow Damage 10 | . . . 10 Projectiles . | . . . . Explosions 10 | . . . 10 Melee . | . . . . Knockbacks . | . . . . Impact . | . . . . Kinetic . | . . . . Secondary . | . . . . Self-Inflicted Damage . | . . . . Shots . | . . . . Rammed . | . . . . Targets Rammed 2 | . 1 1 . Kicked 2 | . 1 1 . Crushed . | . . . . Highest Temperature 131 | . 6 9 131 Average Temperature 39 | . 4 7 45 Received Heat Transfer 501 | . 24 36 441 Siege Activations . | . . . . Robots Corrupted . | . . . . Combat Hostiles . | . . . . Parts Fried . | . . . . Impact Corruptions . | . . . . Robots Melted . | . . . . Combat Hostiles . | . . . . Parts Melted . | . . . . Heat Transferred 444 | . . . 444 Parts Sabotaged . | . . . . Parts Stolen . | . . . . Parts Stripped . | . . . . Power Chain Reactions . | . . . . Alert | -11 -10 -10 -9 ------- Run | Yrd Mat Min Mat Peak Influence 268 | . 207 215 268 Initial 80 | . . 80 5 Average 86 | . 93 104 70 Maximum Alert Level 1 | . 1 1 1 Low Security (%) 89 | 100 87 82 98 Level 1 10 | . 12 17 1 Level 2 . | . . . . Level 3 . | . . . . Level 4 . | . . . . Level 5 . | . . . . High Security . | . . . . Max Security . | . . . . Squads Dispatched 1 | . . . 1 Investigation . | . . . . Extermination . | . . . . Reinforcement 1 | . . . 1 Assault . | . . . . Garrison . | . . . . Intercept . | . . . . Searches Triggered . | . . . . Construction Impeded . | . . . . Haulers Reinforced . | . . . . Active Scanning Responses . | . . . . Cargo Convoy Interrupts . | . . . . Stealth | -11 -10 -10 -9 --------- Run | Yrd Mat Min Mat Distress Signals 3 | . . . 3 Communications Jammed . | . . . . Distress Signals . | . . . . Times Spotted 30 | . 11 5 14 Peak Tracking Total 7 | . 4 3 7 Tactical Retreats 3 | . 2 1 . Traps | -11 -10 -10 -9 ------- Run | Yrd Mat Min Mat Traps Triggered . | . . . . Indirectly . | . . . . Trap Hack Attempts . | . . . . Triggered . | . . . . Disarmed . | . . . . Reprogrammed . | . . . . Reused . | . . . . Traps Extracted . | . . . . Installed . | . . . . Triggered . | . . . . Machines | -11 -10 -10 -9 ---------- Run | Yrd Mat Min Mat Machines Disabled 2 | . . . 2 Max in Single Turn 1 | . . . 1 Machines Repaired . | . . . . Machines Dismantled . | . . . . Machines Sabotaged . | . . . . Overloaded Fab Kills . | . . . . Hacking | -11 -10 -10 -9 --------- Run | Yrd Mat Min Mat Machines Accessed 2 | . 1 . 1 Terminals 2 | . 1 . 1 Fabricators . | . . . . Repair Stations . | . . . . Recycling Units . | . . . . Scanalyzers . | . . . . Garrison Access . | . . . . Total Hacks 9 | . 6 . 3 Successful 3 | . 2 . 1 Failed 6 | . 4 . 2 Catastrophic 2 | . 1 . 1 Database Lockouts . | . . . . Manual . | . . . . Terminals 9 | . 6 . 3 Fabricators . | . . . . Repair Stations . | . . . . Recycling Units . | . . . . Scanalyzers . | . . . . Garrison Access . | . . . . Terminal Hacks 3 | . 2 . 1 Record 1 | . 1 . . Robot Analysis 1 | . . . 1 Hauler Manifests 1 | . 1 . . Fabricator Hacks . | . . . . Repair Station Hacks . | . . . . Recycling Unit Hacks . | . . . . Scanalyzer . | . . . . Garrison Access Hacks . | . . . . Unauthorized Hacks . | . . . . Terminals . | . . . . Fabricators . | . . . . Repair Stations . | . . . . Recycling Units . | . . . . Scanalyzers . | . . . . Garrison Access . | . . . . Data Cores Recovered . | . . . . Used . | . . . . Hacking Detections 2 | . 1 . 1 Full Trace Events 1 | . 1 . . Feedback Events . | . . . . Feedback Blocked . | . . . . Robot Schematics Acquired . | . . . . Robots Built . | . . . . Authchips . | . . . . Time . | . . . . Total Robot Build Rating . | . . . . Part Schematics Acquired . | . . . . Parts Built . | . . . . Authchips . | . . . . Time . | . . . . Total Part Build Rating . | . . . . Parts Repaired . | . . . . Time . | . . . . Parts Recycled . | . . . . Recycled Matter . | . . . . Retrieved Matter . | . . . . Retrieved Components . | . . . . Parts Scanalyzed . | . . . . Part Schematics Acquired . | . . . . Parts Damaged . | . . . . Bothacking | -11 -10 -10 -9 ------------ Run | Yrd Mat Min Mat Used RIF Installer . | . . . . Robots Hacked . | . . . . Non-combat . | . . . . Combat . | . . . . Robot Hacks Applied . | . . . . Relay Couplers Released . | . . . . Fabnet Peak Effective % . | . . . . Robots Rewired . | . . . . Allies Hacked . | . . . . Hacks Repelled . | . . . . Allies | -11 -10 -10 -9 -------- Run | Yrd Mat Min Mat Total Allies . | . . . . Largest Group . | . . . . Highest-Rated Group . | . . . . Highest-Rated Ally . | . . . . Total Orders . | . . . . Ally Attacks . | . . . . Total Damage . | . . . . Kills . | . . . . Allies Corrupted . | . . . . Allies Melted . | . . . . Intel | -11 -10 -10 -9 ------- Run | Yrd Mat Min Mat Robot Analysis Total 1 | . . . 1 Derelict Logs Recovered 1 | . . 1 . Drone Launches . | . . . . Drone Recoveries . | . . . . Exploration | -11 -10 -10 -9 ------------- Run | Yrd Mat Min Mat Turns Passed 1312 | 59 247 561 445 Spaces Moved 817 | 46 151 408 212 Core 6 | 6 . . . Treads . | . . . . Legs 811 | 40 151 408 212 Wheels . | . . . . Hover . | . . . . Flight . | . . . . Fastest Speed 50 | 50 120 120 120 Average Speed 120 | 110 120 120 122 Slowest Speed 190 | 120 120 120 190 Overloaded Moves . | . . . . Propulsion Burnouts . | . . . . Robots Hopped . | . . . . Cave-ins Triggered . | . . . . Exploration Rate (%) 31 | 4 27 74 22 Regions Visited 3 Branch Regions 1 Pre-discovered Areas . | . . . . Known Exits Taken . | . . . . Unknown Exits Taken 3 | 1 1 1 . Scrap Searched . | . . . . Spaces Dug . | . . . . Terrain Destroyed 31 | . . . 31 Melee . | . . . . Projectile . | . . . . AOE 31 | . . . 31 Terrain Rammed . | . . . . Walls Destroyed . | . . . . Machines Disabled . | . . . . Actions | -11 -10 -10 -9 --------- Run | Yrd Mat Min Mat Total 1054 | 51 198 446 359 Wait 150 | . 33 8 109 Move 814 | 45 150 407 212 Hop . | . . . . Pick Up 11 | . 1 7 3 Fast Attach 9 | 6 2 . 1 Attach 8 | . . . 8 Detach 1 | . . . 1 Swap 4 | . . 3 1 Drop 2 | . . 2 . Fire 53 | . 11 18 24 Melee . | . . . . Ram . | . . . . Kick 2 | . 1 1 . Crush . | . . . . Escape Stasis . | . . . . Rewire . | . . . . Trap . | . . . . Miscellaneous . | . . . . Route ------- -11/Scrapyard -10/Materials -10/Mines (discovered 2 exits: *Mat x2) -9/Materials (discovered 1 exit: [*Min]) History --------- Turn | Location | Event 6 | -11/Scrapyard | Discovered new exit (range 16) 60 | -11/Scrapyard | Entered Materials 283 | -10/Materials | Discovered new exit (range 16) 307 | -10/Materials | Entered Mines 315 | -10/Mines | Build established: Mutant 323 | -10/Mines | Met a Derelict bent on vengeance 341 | -10/Mines | Learned Materials terminal intel 563 | -10/Mines | Discovered new exit (range 10) 627 | -10/Mines | Discovered new exit (range 11) 712 | -10/Mines | Found a damaged Exp. Sensor Array with a note attached 715 | -10/Mines | Found Prototype Device 716 | -10/Mines | Identified Exp. Sensor Array 868 | -10/Mines | Entered Materials 868 | -9/Materials | Evolved 2 slots: Propulsion x1, Utility x1 869 | -9/Materials | Loaded intel: 11 terminal locations 1123 | -9/Materials | Discovered new exit (range 12) 1313 | -9/Materials | Self-destructed Last Messages --------------- 01262_ W-16 Scout destroyed. 01262_ Destroyed Hover Unit. 01262_ G-34 Mercenary destroyed. 01263_ Particle Gun destroyed. 01265_ G-47 Trooper destroyed. 01270_ U-05 Engineer lays Concrete. 01276_ Ion Engine destroyed. 01276_ Aluminum Leg destroyed. 01276_ U-05 Engineer lays Concrete. 01276_ Aluminum Leg destroyed. 01277_ U-05 Engineer lays Concrete. 01280_ Aluminum Leg destroyed. 01280_ U-05 Engineer lays Concrete. 01288_ Ion Engine destroyed. 01290_ U-05 Engineer builds a Wall. 01291_ Beam Rifle destroyed. 01292_ The unstable cave ceiling collapses. 01301_ K-01 Serf collects debris. 01303_ G-47 Trooper suffers critical hit (Burn). 01313_ Aluminum Leg destroyed. Map ----- +----------------------------------------------------+ | ?????????????## ##???????? | | ??????????????# #????????? | | ??????????????# #????????? | | ??????????????# #????????? | | ???#######???## ##???????? | | #### ##### #???????? | | # = #???????? | | # #???????? | | # ! #???????? | | # ##### #???????? | | ## ##???#######???????? | | ## #??????????????????? | | ## ###########????????? | | ## ## #????????? | | ## ## #????????? | | #+## # #????????? | | # #????????? | | + #????????? | | # #????????? | | #### # #????????? | | ???### ### #????????? | | ?????# #?# #????????? | | ?????# #?##################? | | #????# #???### *! T #? | | #????# #???# !! g #? | | #????# #???# g @#? | | #????# #???# """ #? | | #????#/##### Y """ #? | | #????# # """Y #? | | ?????# #? | | ???T?# =[ #####? | | ?????# " % # ##????? | | ?????# """ = % ??? | | ?????# "" =*# ?? | | ?????# """ " # #? | | ?????# """ ## #########? | | ?????# ## #????????? | | ?????#####+##### #????????? | | ????????? ???# #????????? | | ????????? ???? #????????? | | ????????? ???? #????????? | | ?????????###???? #????????? | | ???????????????????????????? | | ???????????????????????????? | | ???????????????????????????? | | ???????????????????????????? | | ???????????????????????????? | | ???????????????????????????? | | ???????????????????????????? | | ???????????????????????????? | +----------------------------------------------------+ Best States ------------- Heat Dissipation 28 Energy Generation 10 Energy Capacity 250 Matter Stores 300 Matter Capacity 300 Sight Range 16 Robot Scan Range 20 Terrain Scan Density 10 Evasion (%) 55 Salvage Targeting 1 Item Schematics ----------------- None Robot Schematics ------------------ None Fabricated ------------ Nothing Alien Tech Used ----------------- None Achievements -------------- None Challenges ------------ None Game ------ Seed PointBiometalChainsword Manual? 0 Play Time 00:12:43 Cumulative 23.5 hours Start 2024.07.19 @ 18:08:40 End 2024.07.19 @ 19:21:13 Sessions 3 Manual Loads 0 Difficulty Rogue Special Mode None Game No. 41 Rogue 40 Adventurer 1 Explorer 0 Win Type - Total 0 Types 0/0/0/0/0/0/0/0/0 Lore% 12 Gallery% 24 Achievement% 16 Wizard Run 0 Options --------- Layout 1 ASCII 0 Keyboard 1 Movement Numpad Keybinds 0 Fullscreen 1 Font 24/Smallcaps Map View 50x40 Zoom Use 0% Tactical HUD 1 Map Filters NONE Filters NONE Steam 1 RUN: 0757dd50-a01a-4f37-aff6-0051657b3203